bitfinex/quotes_BTCUSD_20220213
["timestamp","ask_amount","ask_price","bid_price","bid_amount"]
[1644775287725,0.0012596,42354.0,42352.0,0.70838095]
[1644775289775,0.241,42353.0,42352.0,0.95950135]
[1644775295833,0.241,42353.0,42352.0,0.70838095]
[1644775297475,0.231,42353.0,42352.0,0.70838095]
[1644775298677,0.231,42353.0,42352.0,0.82645795]
[1644775300845,0.0012596,42354.0,42353.0,7.810124]
[1644775301046,0.001,42354.0,42353.0,8.179587]
[1644775301245,0.001,42354.0,42353.0,8.18618587]
[1644775301445,0.001,42354.0,42353.0,8.23634567]
[1644775301646,0.001,42354.0,42353.0,8.28650547]
[1644775302445,0.001,42354.0,42353.0,8.2865693]
[1644775302647,0.0003596,42355.0,42354.0,1.082691]
[1644775302850,0.0003596,42355.0,42354.0,0.62062743]
[1644775302851,0.0001,42355.0,42354.0,0.62062743]
[1644775303046,0.0001,42355.0,42354.0,0.6272263]
[1644775303646,0.0001,42355.0,42354.0,0.62729013]
[1644775304678,0.0001,42355.0,42354.0,0.62735396]
[1644775304877,0.0001,42355.0,42354.0,0.62749596]
[1644775305678,0.0001,42355.0,42354.0,0.60500379]
[1644775306278,0.165908,42362.0,42361.0,0.332777]
[1644775306676,0.165908,42362.0,42361.0,0.310217]
[1644775307077,0.165908,42362.0,42361.0,0.4105366]
[1644775307280,0.135908,42362.0,42361.0,0.69145932]
[1644775307679,0.135908,42362.0,42361.0,0.71408315]
[1644775307929,0.135908,42362.0,42361.0,0.71413915]
[1644775308129,0.135908,42362.0,42361.0,0.72073802]
[1644775308728,0.135908,42362.0,42361.0,0.72080185]
[1644775309427,0.135908,42362.0,42361.0,0.98164622]
[1644775309728,0.135908,42362.0,42361.0,0.95903805]
[1644775309930,0.135908,42362.0,42361.0,0.95863846]
[1644775310128,0.135908,42362.0,42361.0,0.95995879]
[1644775310529,0.135908,42362.0,42361.0,0.69926601]
[1644775310730,0.135908,42362.0,42361.0,0.69932984]
[1644775310927,0.135908,42362.0,42361.0,0.9602003]
[1644775311527,0.135908,42362.0,42361.0,0.96127263]
[1644775311779,0.135908,42362.0,42361.0,0.96133646]
[1644775312380,0.135908,42362.0,42361.0,0.700466]
[1644775312581,0.135908,42362.0,42361.0,0.70153833]
[1644775312780,0.135908,42362.0,42361.0,0.70160216]
[1644775312981,0.355908,42362.0,42361.0,0.70160216]
[1644775313580,0.355908,42362.0,42361.0,0.70267449]
[1644775313784,0.355908,42362.0,42361.0,0.96507038]
[1644775313981,0.355908,42362.0,42361.0,0.96513421]
[1644775314581,0.355908,42362.0,42361.0,0.96620654]
[1644775315184,0.355908,42362.0,42361.0,0.77140169]
[1644775315665,0.355908,42362.0,42361.0,0.77247402]
[1644775316666,0.355908,42362.0,42361.0,0.77354635]
[1644775316866,0.355908,42362.0,42361.0,0.51115046]
[1644775317067,0.355908,42362.0,42361.0,0.51121429]
[1644775317666,0.355908,42362.0,42361.0,0.51228662]
[1644775318669,0.355908,42362.0,42361.0,0.51335895]
[1644775318866,0.355908,42362.0,42361.0,0.77236736]
[1644775319192,0.355908,42362.0,42361.0,0.77243119]
[1644775319787,0.355908,42362.0,42361.0,0.77350352]
[1644775320389,0.355908,42362.0,42361.0,0.42837724]
[1644775320588,0.403208,42362.0,42361.0,0.11821624]
[1644775320788,0.503208,42362.0,42361.0,0.11928857]
[1644775321887,0.56225,42362.0,42361.0,0.1203609]
[1644775322299,0.56225,42362.0,42361.0,0.12042473]
[1644775322925,0.56225,42362.0,42361.0,0.12149706]
[1644775323326,0.73877284,42362.0,42361.0,0.12149706]
[1644775323730,0.60226102,42363.0,42362.0,7.06969216]
[1644775323928,0.36121291,42363.0,42362.0,7.06969216]
[1644775324125,0.36121291,42363.0,42362.0,7.07629103]
[1644775324325,0.36121291,42363.0,42362.0,7.17667446]
[1644775324526,0.42025291,42363.0,42362.0,7.17667446]
[1644775325027,0.42025291,42363.0,42362.0,7.17774679]
[1644775325228,0.42025291,42363.0,42362.0,7.17781062]
[1644775326231,0.42025291,42363.0,42362.0,7.17787445]
[1644775326680,0.42025291,42363.0,42362.0,7.17894678]
[1644775326876,0.15904,42363.0,42362.0,7.17894678]
[1644775327275,0.05897617,42363.0,42362.0,7.17894678]
[1644775327681,0.10627617,42363.0,42362.0,7.18001911]
[1644775327877,0.32931296,42363.0,42362.0,7.18001911]
[1644775328280,0.42931296,42363.0,42362.0,7.18001911]
[1644775328681,0.42931296,42363.0,42362.0,7.18109144]
[1644775329683,0.42931296,42363.0,42362.0,7.18216377]
[1644775330725,0.20627617,42363.0,42362.0,7.1832361]
[1644775330926,0.10627617,42363.0,42362.0,7.1832361]
[1644775331728,0.10627617,42363.0,42362.0,7.18430843]
[1644775331929,0.10627617,42363.0,42362.0,5.43095216]
[1644775332132,0.059048,42359.0,42344.0,0.19937074]
[1644775332331,1.48283,42362.0,42339.0,0.29474256]
[1644775332332,0.106,42349.0,42339.0,0.29474256]
[1644775332533,0.05,42351.0,42339.0,0.29474256]
[1644775332534,0.156,42346.0,42339.0,0.29474256]
[1644775332733,0.156,42340.0,42339.0,0.29474256]
[1644775332932,0.156,42340.0,42339.0,0.29581489]
[1644775332933,0.536133,42340.0,42339.0,0.29581489]
[1644775333134,0.636133,42340.0,42339.0,0.29091489]
[1644775333330,1.0,42339.0,42332.0,0.059]
[1644775333532,0.106,42333.0,42332.0,0.059]
[1644775333731,0.536133,42333.0,42332.0,0.059]
[1644775333929,0.586133,42333.0,42332.0,0.059]
[1644775334190,0.686133,42333.0,42332.0,0.059]
[1644775334380,0.804298,42333.0,42332.0,0.059]
[1644775334980,0.994298,42333.0,42332.0,0.059]
[1644775335181,0.661465,42333.0,42332.0,0.059]
[1644775335781,0.994298,42333.0,42332.0,0.059]
[1644775336282,0.55794838,42333.0,42332.0,0.059]
[1644775336686,0.22511538,42333.0,42332.0,0.059]
[1644775336882,0.55794838,42333.0,42332.0,0.059]
[1644775337384,1.00957842,42333.0,42332.0,0.059]
[1644775337784,0.96227842,42333.0,42332.0,0.059]
[1644775338025,0.67674542,42333.0,42332.0,0.059]
[1644775338227,1.10957842,42333.0,42332.0,0.059]
[1644775338426,0.77674542,42333.0,42332.0,0.059]
[1644775339026,1.10957842,42333.0,42332.0,0.059]
[1644775339231,0.82674542,42333.0,42332.0,0.059]
[1644775339428,1.15957842,42333.0,42332.0,0.059]
[1644775339629,0.87341338,42333.0,42332.0,0.059]
[1644775340630,1.54058038,42333.0,42332.0,0.059]
[1644775342381,1.70147452,42333.0,42332.0,0.059]
[1644775346123,1.54058038,42333.0,42332.0,0.059]
[1644775347424,1.49328038,42333.0,42332.0,0.059]
[1644775347925,1.54058038,42333.0,42332.0,0.059]
[1644775348129,1.70147497,42333.0,42332.0,0.059]
[1644775349188,1.7014743,42333.0,42332.0,0.059]
[1644775349778,1.54058038,42333.0,42332.0,0.059]
[1644775349976,1.49058038,42333.0,42332.0,0.059]
[1644775350780,1.44058038,42333.0,42332.0,0.059]
[1644775351279,0.94058038,42333.0,42332.0,0.059]
[1644775353628,0.99058038,42333.0,42332.0,0.059]
[1644775355835,1.38606876,42333.0,42332.0,0.059]
[1644775356035,1.5469742,42333.0,42332.0,0.059]
[1644775356234,1.4969742,42333.0,42332.0,0.059]
[1644775356678,2.4969742,42333.0,42332.0,0.059]
[1644775357079,2.5469742,42333.0,42332.0,0.059]
[1644775357480,2.5469742,42333.0,42332.0,0.05890133]
[1644775357677,2.5469742,42333.0,42322.0,0.06479543]
[1644775357878,0.177254,42330.0,42320.0,0.20391502]
[1644775358079,0.177254,42330.0,42314.0,0.67057149]
[1644775358080,0.05,42327.0,42314.0,0.67057149]
[1644775358279,0.0473,42326.0,42314.0,0.55737149]
[1644775358479,0.0473,42326.0,42315.0,0.332833]
[1644775358677,0.0473,42326.0,42314.0,0.5572]
[1644775358879,0.0473,42326.0,42313.0,0.00017149]
[1644775358880,0.0473,42326.0,42318.0,0.08433872]
[1644775359078,0.0473,42326.0,42318.0,0.08475404]
[1644775359379,0.059092,42324.0,42319.0,0.332833]
[1644775359578,0.106392,42324.0,42319.0,0.332833]
[1644775360183,0.05877788,42321.0,42315.0,0.332833]
[1644775360429,0.05877788,42321.0,42312.0,0.0105868]
[1644775360629,0.05877788,42321.0,42313.0,0.33300449]
[1644775361234,1.0,42319.0,42314.0,0.26985192]
[1644775361432,0.059095,42318.0,42315.0,0.310941]
[1644775361631,0.059095,42318.0,42317.0,0.41566531]
[1644775362231,1.059095,42318.0,42317.0,0.332801]
[1644775362433,1.059095,42318.0,42313.0,0.00017149]
[1644775362434,1.106395,42318.0,42313.0,0.00017149]
[1644775362742,0.05,42316.0,42313.0,0.332833]
[1644775362934,0.05,42316.0,42313.0,0.33300449]
[1644775363332,0.5,42315.0,42313.0,0.33300449]
[1644775363732,0.618214,42315.0,42313.0,0.33300449]
[1644775363933,0.5,42314.0,42313.0,0.33300449]
[1644775366382,0.58170275,42315.0,42313.0,0.33300449]
[1644775366578,0.58170275,42315.0,42313.0,0.00017149]
[1644775366779,0.58170275,42315.0,42312.0,0.0105868]
[1644775366979,0.059102,42314.0,42313.0,0.332833]
[1644775367180,0.059102,42314.0,42313.0,0.00017149]
[1644775367381,0.118204,42314.0,42312.0,0.0105868]
[1644775367943,0.358204,42314.0,42313.0,0.332833]
[1644775368138,0.24,42314.0,42313.0,0.00017149]
[1644775368338,0.24,42314.0,42313.0,0.332833]
[1644775368539,0.24,42314.0,42313.0,0.33300449]
[1644775372583,0.118196,42319.0,42313.0,0.33300449]
[1644775372784,0.7819,42331.0,42313.0,0.33300449]
[1644775372785,0.5,42324.0,42314.0,0.67060822]
[1644775372982,0.4184,42328.0,42317.0,0.118157]
[1644775372983,0.3,42328.0,42317.0,0.118157]
[1644775373186,0.3,42328.0,42318.0,0.332786]
[1644775373383,0.059081,42327.0,42318.0,0.332786]
[1644775373584,0.059081,42327.0,42326.0,0.08982396]
[1644775375286,0.059078,42330.0,42326.0,0.42265696]
[1644775375531,0.00037927,42332.0,42326.0,0.08982396]
[1644775375733,0.5939,42333.0,42326.0,0.08982396]
[1644775375930,0.0003785,42332.0,42326.0,0.08982396]
[1644775376131,0.0003785,42332.0,42330.0,0.19166697]
[1644775376330,0.0594535,42332.0,42330.0,0.19166697]
[1644775376629,0.0594535,42332.0,42327.0,0.20906139]
[1644775376831,0.059075,42332.0,42327.0,0.20906139]
[1644775377230,0.05945351,42332.0,42327.0,0.20906139]
[1644775377629,0.05945351,42332.0,42327.0,0.46666226]
[1644775378033,0.059075,42332.0,42327.0,0.46666226]
[1644775378433,0.05945351,42332.0,42327.0,0.46666226]
[1644775379035,0.29945351,42332.0,42327.0,0.46666226]
[1644775379282,0.299075,42332.0,42327.0,0.46666226]
[1644775379784,0.29945355,42332.0,42327.0,0.46666226]
[1644775380181,0.29945355,42332.0,42328.0,0.332833]
[1644775380382,0.29945355,42332.0,42327.0,0.46666226]
[1644775380581,0.299075,42332.0,42327.0,0.46666226]
[1644775380785,0.29945354,42332.0,42327.0,0.46666226]
[1644775381181,0.29945354,42332.0,42327.0,0.25760087]
[1644775381383,0.118164,42331.0,42327.0,0.25760087]
[1644775382184,0.059082,42331.0,42327.0,0.25760087]
[1644775383832,0.059084,42330.0,42326.0,0.08982396]
[1644775384235,0.118166,42330.0,42326.0,0.08982396]
[1644775384434,0.17725,42330.0,42327.0,0.332833]
[1644775384633,0.118168,42330.0,42326.0,0.08982396]
[1644775384835,0.118168,42330.0,42326.0,0.28077067]
[1644775385036,0.059085,42329.0,42319.0,0.28294769]
[1644775385237,0.118169,42329.0,42319.0,0.00018136]
[1644775385437,0.118181,42327.0,42316.0,0.00018136]
[1644775385635,0.118181,42327.0,42315.0,0.6674]
[1644775385636,0.059091,42326.0,42317.0,0.33321166]
[1644775386041,0.059091,42326.0,42324.0,0.23087271]
[1644775386237,0.059091,42326.0,42325.0,0.310828]
[1644775387881,0.15,42331.0,42325.0,0.310828]
[1644775388078,0.15,42331.0,42324.0,0.31614887]
[1644775388378,0.05,42331.0,42324.0,0.31614887]
[1644775389278,0.059083,42330.0,42324.0,0.31614887]
[1644775389481,0.059083,42330.0,42325.0,0.332833]
[1644775389681,0.059083,42330.0,42324.0,0.31614887]
[1644775389881,0.059083,42330.0,42325.0,0.332833]
[1644775390080,0.059082,42327.0,42324.0,0.31614887]
[1644775390280,0.059082,42327.0,42325.0,0.332833]
[1644775394281,0.118169,42327.0,42325.0,0.332833]
[1644775394481,0.118169,42327.0,42324.0,0.31614887]
[1644775394781,0.118169,42327.0,42325.0,0.332833]
[1644775396388,0.09537578,42329.0,42325.0,0.332833]
[1644775396583,0.09537578,42329.0,42324.0,0.31614887]
[1644775396885,0.51952404,42332.0,42324.0,0.31614887]
[1644775397083,0.059089,42326.0,42324.0,0.31614887]
[1644775397283,0.059089,42326.0,42325.0,0.332833]
[1644775397683,0.118169,42329.0,42325.0,0.332833]
[1644775397928,0.118169,42329.0,42324.0,0.31614887]
[1644775398130,0.118169,42329.0,42325.0,0.332833]
[1644775398330,0.118169,42329.0,42324.0,0.31614887]
[1644775398529,0.118169,42329.0,42325.0,0.332833]
[1644775398731,0.059087,42327.0,42325.0,0.332833]
[1644775398934,0.118177,42327.0,42325.0,0.332833]
[1644775399130,0.118177,42327.0,42324.0,0.31614887]
[1644775399331,0.118177,42327.0,42325.0,0.332833]
[1644775399831,0.118177,42327.0,42324.0,0.31614887]
[1644775400130,0.118177,42327.0,42325.0,0.332833]
[1644775400131,0.118179,42326.0,42325.0,0.332833]
[1644775402391,0.177268,42326.0,42325.0,0.332833]
[1644775404491,0.059093,42325.0,42322.0,0.00018136]
[1644775404791,0.118186,42323.0,42318.0,0.33301436]
[1644775404991,0.059093,42323.0,42318.0,0.332833]
[1644775405193,0.059093,42323.0,42318.0,0.33301436]
[1644775405432,0.059093,42323.0,42321.0,0.2687972]
[1644775405633,0.059093,42323.0,42322.0,0.41285112]
[1644775405833,0.118185,42323.0,42322.0,0.41303248]
[1644775406034,0.118185,42323.0,42322.0,0.41303148]
[1644775406233,0.118185,42323.0,42322.0,0.41303048]
[1644775406433,0.059093,42323.0,42322.0,0.41303048]
[1644775406737,0.059093,42323.0,42322.0,0.41302948]
[1644775406938,0.059093,42323.0,42322.0,0.41302848]
[1644775407133,0.059093,42323.0,42322.0,0.41302748]
[1644775407634,0.059085,42324.0,42322.0,0.08022948]
[1644775407834,0.059085,42324.0,42322.0,0.39107448]
[1644775413335,0.299085,42324.0,42322.0,0.39107448]
[1644775413536,0.24,42324.0,42322.0,0.39107448]
[1644775413938,0.24,42324.0,42323.0,0.27896871]
[1644775414144,0.24,42324.0,42323.0,0.65905771]
[1644775414342,0.44,42333.0,42330.0,0.2246035]
[1644775414539,0.0018926,42332.0,42331.0,0.70409272]
[1644775414738,0.0018926,42332.0,42331.0,0.651647]
[1644775415541,0.44,42333.0,42331.0,0.651647]
[1644775416442,0.44,42333.0,42331.0,0.90874801]
[1644775416686,0.44,42333.0,42332.0,0.25473602]
[1644775416885,0.44,42333.0,42332.0,0.56549802]
[1644775421431,0.435,42333.0,42332.0,0.56549802]
[1644775422836,0.1195,42343.0,42334.0,0.05906]
[1644775423033,0.0939,42348.0,42336.0,0.059054]
[1644775423034,0.00151384,42341.0,42336.0,0.059054]
[1644775423233,0.00151384,42341.0,42336.0,0.310566]
[1644775423433,0.06057884,42341.0,42336.0,0.310566]
[1644775423634,0.06057884,42341.0,42339.0,0.19418636]
[1644775423834,0.059065,42341.0,42339.0,0.50472736]
[1644775424035,0.05944348,42341.0,42339.0,0.50472736]
[1644775424488,0.29944348,42341.0,42339.0,0.50472736]
[1644775425088,0.299065,42341.0,42339.0,0.50472736]
[1644775425387,0.299065,42341.0,42340.0,0.06933008]
[1644775426491,0.00037847,42343.0,42341.0,0.23717521]
[1644775426889,0.05944347,42343.0,42341.0,0.23717521]
[1644775427292,0.11850547,42343.0,42341.0,0.23717521]
[1644775427492,0.118127,42343.0,42341.0,0.23717521]
[1644775428941,0.059062,42343.0,42341.0,0.23717521]
[1644775429541,0.059062,42343.0,42342.0,0.332833]
[1644775430141,0.059062,42343.0,42341.0,0.23717521]
[1644775430943,0.118128,42343.0,42341.0,0.23717521]
[1644775432288,0.118128,42343.0,42342.0,0.332833]
[1644775432494,0.059062,42343.0,42342.0,0.332833]
[1644775434890,0.059062,42343.0,42342.0,0.58933872]
[1644775435291,0.299062,42343.0,42342.0,0.332833]
[1644775436536,0.059062,42343.0,42342.0,0.332833]
[1644775436735,0.00037844,42345.0,42342.0,0.59139315]
[1644775437136,0.1215,42350.0,42342.0,0.59139315]
[1644775437340,0.00037844,42346.0,42342.0,0.25856015]
[1644775437537,0.00037844,42346.0,42343.0,0.332833]
[1644775438337,0.059056,42347.0,42343.0,0.332833]
[1644775438538,0.05943444,42347.0,42343.0,0.332833]
[1644775438739,0.00037844,42347.0,42343.0,0.332833]
[1644775439587,0.4839,42354.0,42343.0,0.332833]
[1644775439783,0.4839,42354.0,42353.0,0.06925943]
[1644775439784,0.0939,42354.0,42353.0,0.06925943]
[1644775439985,0.05930982,42356.0,42353.0,0.06925943]
[1644775440184,0.15930982,42356.0,42353.0,0.06925943]
[1644775440388,0.05930982,42356.0,42355.0,0.23155317]
[1644775440584,0.059049,42356.0,42355.0,0.23155317]
[1644775441185,0.118096,42356.0,42355.0,0.23155317]
[1644775441384,0.118096,42356.0,42349.0,0.26049554]
[1644775441585,0.05930982,42356.0,42350.0,0.332833]
[1644775441787,0.05930982,42356.0,42348.0,0.16774907]
[1644775441984,0.05930982,42356.0,42349.0,0.332833]
[1644775442186,0.0003784,42355.0,42348.0,0.16774907]
[1644775442484,0.0003784,42355.0,42351.0,0.07001698]
[1644775442684,0.0003784,42355.0,42348.0,0.37273187]
[1644775442685,0.059049,42353.0,42348.0,0.37273187]
[1644775442939,0.1181,42353.0,42349.0,0.332833]
[1644775443449,0.11847841,42353.0,42349.0,0.332833]
[1644775443837,0.11847841,42353.0,42348.0,0.0768629]
[1644775444039,0.11847841,42353.0,42346.0,0.03620017]
[1644775444239,0.059057,42352.0,42346.0,0.03620017]
[1644775444439,0.059057,42351.0,42346.0,0.03620017]
[1644775444641,0.059057,42351.0,42347.0,0.310385]
[1644775445341,0.059057,42350.0,42347.0,0.310385]
[1644775445544,0.059054,42350.0,42349.0,0.06496986]
[1644775445740,0.059054,42350.0,42349.0,0.39779386]
[1644775445941,0.059054,42350.0,42349.0,0.332824]
[1644775446142,0.059054,42350.0,42345.0,0.29235798]
[1644775446341,0.059054,42350.0,42346.0,0.332833]
[1644775446541,0.118109,42350.0,42346.0,0.332833]
[1644775446797,0.00277427,42357.0,42346.0,0.332833]
[1644775446798,0.00126082,42357.0,42346.0,0.332833]
[1644775446997,0.00037842,42350.0,42346.0,0.332833]
[1644775447198,0.16037842,42350.0,42346.0,0.332833]
[1644775447794,0.16,42350.0,42346.0,0.332833]
[1644775447995,0.16,42350.0,42347.0,0.06774874]
[1644775448199,0.16037842,42350.0,42348.0,0.310394]
[1644775449198,0.00126082,42357.0,42350.0,0.34]
[1644775449398,0.00037842,42351.0,42350.0,0.34]
[1644775449598,0.00037842,42351.0,42350.0,0.94021543]
[1644775449997,0.00037842,42351.0,42350.0,1.17555606]
[1644775450431,0.059049,42356.0,42350.0,1.17555606]
[1644775450631,0.118102,42355.0,42354.0,0.07300703]
[1644775452232,0.177151,42355.0,42354.0,0.07300703]
[1644775452633,0.236201,42355.0,42350.0,0.60738243]
[1644775452833,0.177152,42355.0,42351.0,0.332833]
[1644775453132,0.160752,42355.0,42351.0,0.332833]
[1644775453335,0.160752,42355.0,42351.0,0.58906944]
[1644775453735,0.160752,42355.0,42354.0,0.08180426]
[1644775453935,0.101702,42355.0,42354.0,0.08180426]
[1644775454198,0.00041524,42355.0,42354.0,0.08180426]
[1644775455191,0.059051,42355.0,42351.0,0.332833]
[1644775455391,0.236212,42355.0,42350.0,0.34]
[1644775455591,0.177161,42355.0,42350.0,0.34]
[1644775455790,0.059054,42355.0,42350.0,0.34]
[1644775456393,0.059054,42355.0,42352.0,0.07326436]
[1644775456693,0.05946924,42355.0,42352.0,0.07326436]
[1644775456894,0.059054,42354.0,42353.0,0.25926527]
[1644775457194,0.17757624,42355.0,42353.0,0.59209827]
[1644775457195,0.05946924,42355.0,42353.0,0.59209827]
[1644775457394,0.00041524,42355.0,42353.0,0.59209827]
[1644775457593,0.059046,42356.0,42353.0,0.59209827]
[1644775457793,0.05946123,42356.0,42353.0,0.59209827]
[1644775458036,0.059049,42355.0,42353.0,0.59209827]
[1644775459536,0.059049,42355.0,42353.0,0.25926527]
[1644775460635,0.059049,42355.0,42354.0,0.332833]
[1644775460838,0.059049,42355.0,42352.0,0.07326436]
[1644775461038,0.1181,42355.0,42352.0,0.07326436]
[1644775461240,0.059051,42354.0,42350.0,0.34]
[1644775461438,0.059051,42354.0,42351.0,0.310327]
[1644775461700,0.059051,42354.0,42350.0,0.34]
[1644775461895,0.059051,42354.0,42351.0,0.332833]
[1644775462093,0.059051,42354.0,42350.0,0.34]
[1644775462696,0.059052,42353.0,42350.0,0.34]
[1644775462894,0.059055,42352.0,42350.0,0.34]
[1644775463095,0.059055,42352.0,42351.0,0.332833]
[1644775463295,0.059055,42352.0,42350.0,0.34]
[1644775464395,0.059055,42352.0,42351.0,0.332833]
[1644775464396,0.11811,42352.0,42351.0,0.332833]
[1644775465096,0.177166,42352.0,42350.0,0.34]
[1644775465296,0.11811,42352.0,42351.0,0.332833]
[1644775465536,0.11811,42352.0,42350.0,0.34]
[1644775465736,0.11811,42352.0,42351.0,0.310328]
[1644775465938,0.11811,42352.0,42350.0,0.34]
[1644775466138,0.11811,42352.0,42351.0,0.332833]
[1644775466443,0.177166,42352.0,42351.0,0.332833]
[1644775466639,0.11811,42352.0,42351.0,0.332833]
[1644775466941,0.11811,42352.0,42351.0,0.312833]
[1644775467139,0.11811,42352.0,42351.0,0.332701]
[1644775467540,0.11811,42352.0,42350.0,0.34]
[1644775469298,0.177167,42352.0,42350.0,0.34]
[1644775471402,0.177167,42352.0,42350.0,0.37500035]
[1644775472603,0.162167,42352.0,42350.0,0.37500035]
[1644775483950,0.157167,42352.0,42350.0,0.37500035]
[1644775489339,0.157167,42352.0,42350.0,0.34]
[1644775496635,0.61860065,42351.0,42350.0,0.34]
[1644775496836,0.71860065,42351.0,42350.0,0.34]
[1644775497235,0.43589965,42351.0,42350.0,0.34]
[1644775497537,0.57522157,42351.0,42350.0,0.34]
[1644775497734,0.48319965,42351.0,42350.0,0.34]
[1644775497935,0.81590065,42351.0,42350.0,0.34]
[1644775498135,0.48319965,42351.0,42350.0,0.34]
[1644775498335,0.62252157,42351.0,42350.0,0.34]
[1644775498539,0.48319965,42351.0,42350.0,0.34]
[1644775499984,0.15,42351.0,42350.0,0.34]
[1644775500386,0.05,42351.0,42350.0,0.34]
[1644775500785,0.307167,42352.0,42350.0,0.34]
[1644775500786,0.157167,42352.0,42350.0,0.34]
[1644775500990,0.00041525,42353.0,42351.0,0.632701]
[1644775501188,0.00041525,42353.0,42351.0,0.332701]
[1644775501986,0.00026082,42356.0,42351.0,0.332701]
[1644775502187,0.118098,42353.0,42351.0,0.332701]
[1644775502387,0.059048,42353.0,42351.0,0.332701]
[1644775503053,0.059048,42353.0,42351.0,0.59149919]
[1644775503252,0.059048,42353.0,42351.0,0.59150843]
[1644775503852,0.00041524,42354.0,42352.0,0.2614116]
[1644775504052,0.00041524,42354.0,42353.0,0.290466]
[1644775504252,0.00041524,42354.0,42353.0,0.57205205]
[1644775504453,0.00026082,42356.0,42353.0,0.57205205]
[1644775504657,0.00041523,42356.0,42353.0,0.57205205]
[1644775504854,0.00067605,42356.0,42353.0,0.57205205]
[1644775505053,0.05972105,42356.0,42354.0,0.21886942]
[1644775505356,0.05972105,42356.0,42354.0,0.50932642]
[1644775505555,0.05930582,42356.0,42354.0,0.50932642]
[1644775505754,0.05930682,42356.0,42354.0,0.50932642]
[1644775505955,0.00026082,42356.0,42354.0,0.50932642]
[1644775506155,0.00167604,42357.0,42354.0,0.21886942]
[1644775506355,0.00026082,42356.0,42354.0,0.21886942]
[1644775506554,0.06045822,42357.0,42354.0,0.21886942]
[1644775506555,0.06071904,42357.0,42354.0,0.21886942]
[1644775506796,0.05930682,42356.0,42354.0,0.21886942]
[1644775506995,0.059046,42356.0,42354.0,0.21886942]
[1644775507199,0.11835282,42356.0,42354.0,0.21886942]
[1644775507796,0.11835282,42356.0,42355.0,0.332701]
[1644775508000,0.118092,42356.0,42355.0,0.332701]
[1644775508197,0.118092,42356.0,42354.0,0.21886942]
[1644775508398,0.11835282,42356.0,42355.0,0.332701]
[1644775508597,0.118092,42356.0,42355.0,0.332701]
[1644775508797,0.118092,42356.0,42354.0,0.21886942]
[1644775508999,0.11835282,42356.0,42354.0,0.21879657]
[1644775509799,0.11835282,42356.0,42350.0,0.6012745]
[1644775509997,0.11835282,42356.0,42351.0,0.332701]
[1644775509998,0.059051,42353.0,42351.0,0.332701]
[1644775510199,0.059051,42353.0,42351.0,0.58848917]
[1644775510200,0.118102,42353.0,42351.0,0.58848917]
[1644775510437,0.118102,42353.0,42351.0,0.332701]
[1644775512437,0.177153,42353.0,42351.0,0.332701]
[1644775513438,0.118102,42353.0,42350.0,0.34]
[1644775513640,0.059055,42352.0,42351.0,0.332701]
[1644775514493,0.118102,42353.0,42351.0,0.332701]
[1644775515491,0.177154,42353.0,42351.0,0.332701]
[1644775516092,0.059051,42353.0,42351.0,0.307701]
[1644775516294,0.059051,42353.0,42350.0,0.34]
[1644775516495,0.059051,42353.0,42351.0,0.332701]
[1644775516695,0.28354213,42388.0,42360.0,0.15516321]
[1644775516896,0.332701,42361.0,42360.0,0.15516321]
[1644775517194,0.382701,42361.0,42360.0,0.15516321]
[1644775517397,0.441751,42361.0,42360.0,0.15516321]
[1644775518037,0.10905,42361.0,42360.0,0.15516321]
[1644775519040,0.441751,42361.0,42360.0,0.15516321]
[1644775519441,0.05905,42361.0,42360.0,0.15516321]
[1644775520342,0.05905,42361.0,42360.0,0.08712457]
[1644775521795,0.391751,42361.0,42360.0,0.08712457]
[1644775521992,0.05905,42361.0,42360.0,0.08712457]
[1644775522593,0.391751,42361.0,42360.0,0.08712457]
[1644775523795,0.68547307,42361.0,42360.0,0.08712457]
[1644775524095,0.35277207,42361.0,42360.0,0.08712457]
[1644775529387,0.05905,42361.0,42360.0,0.08712457]
[1644775529988,0.33990846,42361.0,42360.0,0.08712457]
[1644775531294,0.05905,42361.0,42360.0,0.08712457]
[1644775534545,0.05905,42361.0,42360.0,0.29913017]
[1644775536245,0.05905,42361.0,42360.0,0.08712457]
[1644775543936,0.05905,42361.0,42360.0,0.08701619]
[1644775549442,0.05905,42361.0,42360.0,0.35075685]
[1644775549642,0.05905,42361.0,42360.0,0.08701619]
[1644775550845,0.05905,42361.0,42360.0,0.28872983]
[1644775551244,0.05905,42361.0,42360.0,0.28866983]
[1644775551695,0.05905,42361.0,42360.0,0.08695619]
[1644775555543,0.05931114,42362.0,42360.0,0.71965719]
[1644775555741,0.05931114,42362.0,42361.0,0.265333]
[1644775555943,0.05966349,42363.0,42361.0,0.265333]
[1644775556142,0.05928914,42363.0,42361.0,0.265333]
[1644775556342,0.05928914,42363.0,42361.0,0.49676282]
[1644775556643,0.05928914,42363.0,42362.0,0.3]
[1644775556844,0.00213725,42364.0,42363.0,0.265319]
[1644775557046,0.00187611,42364.0,42363.0,0.265319]
[1644775557343,0.00150176,42364.0,42363.0,0.265319]
[1644775557844,0.00100352,42364.0,42363.0,0.265319]
[1644775558644,0.00026188,42365.0,42364.0,0.33467403]
[1644775558845,0.05316429,42366.0,42364.0,0.61792984]
[1644775559046,0.05316429,42366.0,42365.0,0.26995361]
[1644775559047,0.00137639,42366.0,42365.0,0.26995361]
[1644775559292,0.00111451,42366.0,42365.0,0.53525861]
[1644775559495,0.00111451,42366.0,42365.0,0.265305]
[1644775559695,0.001,42366.0,42365.0,0.53178004]
[1644775559891,0.001,42366.0,42365.0,0.265305]
[1644775560092,0.001,42366.0,42365.0,0.53057345]
[1644775561795,0.06339288,42367.0,42366.0,0.33265]
[1644775561796,0.05439288,42367.0,42366.0,0.33265]
[1644775561996,0.05439288,42367.0,42366.0,0.332648]
[1644775561997,0.0031,42367.0,42366.0,0.332648]
[1644775565847,0.0031,42367.0,42365.0,0.332701]
[1644775566048,0.00336188,42367.0,42364.0,0.00200703]
[1644775566247,0.02991828,42368.0,42364.0,0.00200703]
[1644775566447,0.118075,42366.0,42364.0,0.00200703]